bitfinex/quotes_SOLUSD_20250704
["timestamp","ask_amount","ask_price","bid_price","bid_amount"]
[1751642514351,25.22173126,147.14,147.09,18.42548279]
[1751642514641,25.22173126,147.14,147.08,6.79883504]
[1751642514816,18.42548279,147.13,147.05,6.80040802]
[1751642515020,18.42548279,147.11,147.07,18.42548279]
[1751642515236,18.42548279,147.11,147.05,6.80040802]
[1751642515535,18.42548279,147.1,147.06,18.42548279]
[1751642515737,18.42548279,147.1,147.04,86.68710923]
[1751642515950,18.42548279,147.1,147.06,18.42548279]
[1751642516116,34.39654421,147.13,147.04,79.88636824]
[1751642516321,23.78686964,147.14,147.1,18.42548279]
[1751642516322,6.79624847,147.14,147.1,18.42548279]
[1751642516528,44.42548279,147.14,147.05,6.80040802]
[1751642516730,44.42548279,147.14,147.09,18.42548279]
[1751642516928,32.79596109,147.15,147.11,18.42548279]
[1751642517223,51.22144388,147.15,147.11,18.42548279]
[1751642517548,32.79596109,147.15,147.1,18.42548279]
[1751642517863,51.22144388,147.15,147.11,18.42548279]
[1751642518537,51.22144388,147.15,147.06,23.7998096]
[1751642518837,51.22144388,147.15,147.11,18.42548279]
[1751642519035,51.22144388,147.15,147.06,23.7998096]
[1751642519236,51.22144388,147.15,147.11,18.42548279]
[1751642519441,7.72,147.16,147.12,18.42548279]
[1751642519442,14.51550994,147.16,147.12,18.42548279]
[1751642519640,6.79550994,147.16,147.07,18.64964886]
[1751642519827,6.79550994,147.16,147.12,18.42548279]
[1751642520028,25.22099273,147.16,147.12,18.42548279]
[1751642520449,18.42548279,147.15,147.1,18.42548279]
[1751642520750,18.42548279,147.13,147.06,13.2046071]
[1751642521049,18.42548279,147.13,147.08,18.42548279]
[1751642521248,18.42548279,147.09,147.04,79.88636824]
[1751642521426,18.42548279,147.09,147.04,98.31185103]
[1751642521619,18.42548279,147.09,147.04,79.88636824]
[1751642521820,18.42548279,147.09,147.04,98.31185103]
[1751642522044,18.42548279,147.09,147.05,18.42548279]
[1751642522247,6.79902094,147.08,147.04,98.31185103]
[1751642522420,25.22450373,147.08,147.04,98.31185103]
[1751642522619,18.42548279,147.07,147.04,79.88636824]
[1751642523220,25.22450373,147.08,147.04,79.88636824]
[1751642523851,0.67654421,147.07,147.04,79.88636824]
[1751642524029,18.42548279,147.06,147.04,79.88636824]
[1751642524224,18.42548279,147.05,147.04,79.88636824]
[1751642525242,25.22558333,147.06,147.04,79.88636824]
[1751642525460,18.42548279,147.05,147.04,79.88636824]
[1751642525752,12.83700056,147.05,147.04,79.88636824]
[1751642526428,19.63740858,147.05,147.04,79.88636824]
[1751642526864,12.83700056,147.05,147.04,79.88636824]
[1751642527232,26.0,147.05,147.04,79.88636824]
[1751642527543,44.40984808,147.05,147.04,79.88636824]
[1751642527737,18.40984808,147.05,147.04,79.88636824]
[1751642527949,44.40984808,147.05,147.04,79.88636824]
[1751642528353,51.2102561,147.05,147.04,79.88636824]
[1751642528679,31.57284752,147.05,147.04,79.88636824]
[1751642528858,17.73330387,147.05,147.04,79.88636824]
[1751642529042,24.53371189,147.05,147.04,79.88636824]
[1751642529447,11.69671133,147.05,147.04,79.88636824]
[1751642529639,24.53371189,147.05,147.04,79.88636824]
[1751642529843,4.89630331,147.05,147.04,79.88636824]
[1751642530355,25.18574886,147.12,147.05,12.83700056]
[1751642530356,4.91203986,147.08,147.05,12.83700056]
[1751642530530,24.54693806,147.11,147.07,12.83700056]
[1751642530730,12.83700056,147.13,147.09,12.83700056]
[1751642530955,24.55289866,147.14,147.09,12.83700056]
[1751642531261,12.83700056,147.15,147.11,12.83700056]
[1751642531463,12.83700056,147.12,147.05,6.1623]
[1751642531763,0.0106581,147.13,147.06,18.43431408]
[1751642531965,7.88,147.16,147.05,6.1623]
[1751642532139,18.43431408,147.15,147.11,18.43431408]
[1751642532328,25.23043056,147.15,147.1,18.43431408]
[1751642532539,25.23043056,147.15,147.09,6.79853385]
[1751642532737,6.79611648,147.15,147.11,18.43431408]
[1751642532935,25.23043056,147.15,147.11,18.43431408]
[1751642533374,6.7939398,147.19,147.14,18.43431408]
[1751642533536,47.79431408,147.21,147.17,18.43431408]
[1751642533738,6.99298226,147.22,147.17,18.43431408]
[1751642534065,18.43431408,147.2,147.12,18.64964886]
[1751642534236,0.2,147.22,147.13,18.43431408]
[1751642534432,32.46383816,147.22,147.12,18.43431408]
[1751642534636,18.43431408,147.15,147.09,6.79853385]
[1751642534954,63.08396294,147.2,147.09,6.79853385]
[1751642535263,26.0,147.2,147.15,18.43431408]
[1751642535462,26.0,147.2,147.1,18.43431408]
[1751642535463,18.43431408,147.2,147.16,18.43431408]
[1751642535772,26.0,147.2,147.15,18.43431408]
[1751642536144,6.99276354,147.22,147.16,18.43431408]
[1751642536345,18.43431408,147.2,147.16,18.43431408]
[1751642538967,0.2,147.22,147.15,6.79578661]
[1751642539149,26.2,147.24,147.15,6.79578661]
[1751642539353,18.43431408,147.2,147.14,14.63715443]
[1751642539555,18.43431408,147.2,147.15,18.43431408]
[1751642539754,18.43431408,147.18,147.14,18.43431408]
[1751642539967,18.43431408,147.18,147.13,25.23093183]
[1751642540165,18.43431408,147.16,147.04,101.68878952]
[1751642540367,18.43431408,147.16,147.11,18.43431408]
[1751642540368,25.22968348,147.16,147.11,18.43431408]
[1751642540577,26.0,147.19,147.12,18.43431408]
[1751642540776,18.43431408,147.18,147.13,18.43431408]
[1751642540994,18.43431408,147.16,147.07,42.99780283]
[1751642541174,18.43431408,147.16,147.11,18.43431408]
[1751642541480,18.43431408,147.17,147.12,18.43431408]
[1751642541848,18.43431408,147.17,147.07,42.99780283]
[1751642542075,18.43431408,147.16,147.12,18.43431408]
[1751642542656,6.79578661,147.15,147.09,6.79815403]
[1751642542863,6.79578661,147.15,147.1,18.43431408]
[1751642542864,18.43431408,147.14,147.1,18.43431408]
[1751642543275,18.43431408,147.13,147.05,6.80040802]
[1751642543464,18.43431408,147.12,147.05,6.80040802]
[1751642543777,18.43431408,147.12,147.08,18.43431408]
[1751642543953,6.79578661,147.15,147.08,18.43431408]
[1751642544149,18.43431408,147.13,147.08,18.43431408]
[1751642544354,6.79578661,147.15,147.05,23.80142808]
[1751642544554,6.79578661,147.15,147.1,18.43431408]
[1751642544555,4.95445005,147.15,147.1,18.43431408]
[1751642544779,18.43431408,147.18,147.13,18.43431408]
[1751642544954,18.43431408,147.19,147.14,18.43431408]
[1751642545153,18.43431408,147.17,147.12,18.43431408]
[1751642545366,18.43431408,147.16,147.1,6.79809653]
[1751642545577,18.43431408,147.16,147.1,25.23241061]
[1751642545951,18.43431408,147.15,147.08,6.79902094]
[1751642546151,18.43431408,147.15,147.09,18.43431408]
[1751642546563,18.43431408,147.15,147.08,6.79902094]
[1751642546779,6.79486308,147.17,147.1,6.79809653]
[1751642546982,18.43431408,147.16,147.1,6.79809653]
[1751642547182,6.79486308,147.17,147.11,18.43431408]
[1751642547671,18.43431408,147.16,147.11,18.43431408]
[1751642547859,25.22994,147.16,147.11,18.43431408]
[1751642548372,25.22994,147.16,147.1,25.23241061]
[1751642548882,32.79562592,147.16,147.1,25.23241061]
[1751642549089,26.0,147.16,147.11,18.43431408]
[1751642549390,44.43431408,147.16,147.11,18.43431408]
[1751642549560,44.43431408,147.16,147.1,6.79809653]
[1751642549759,51.22981641,147.16,147.11,18.43431408]
[1751642550078,32.79550233,147.16,147.1,25.23241061]
[1751642550279,18.43431408,147.15,147.1,25.23241061]
[1751642550785,51.22981641,147.16,147.11,6.79727719]
[1751642550966,51.22981641,147.16,147.11,18.43431408]
[1751642551168,51.22981641,147.16,147.05,84.3]
[1751642551169,18.43431408,147.12,147.06,6.7999456]
[1751642551378,24.95734886,147.15,147.07,18.43431408]
[1751642551577,24.95734886,147.15,147.06,23.7998096]
[1751642551578,18.43431408,147.15,147.06,23.7998096]
[1751642551761,46.69718101,147.16,147.12,12.81718101]
[1751642552085,12.81718101,147.17,147.13,12.81718101]
[1751642552467,32.79454818,147.18,147.13,12.81718101]
[1751642552782,12.81718101,147.18,147.14,19.61335822]
[1751642552985,27.00488101,147.19,147.15,12.81718101]
[1751642553156,7.88,147.19,147.16,12.81718101]
[1751642553675,7.88,147.19,147.17,12.81718101]
[1751642554283,7.88,147.19,147.14,6.79611614]
[1751642554481,2.5,147.22,147.18,12.81718101]
[1751642554687,15.31718101,147.22,147.18,12.81718101]
[1751642554858,2.5,147.22,147.18,12.81718101]
[1751642555190,2.5,147.22,147.2,12.81718101]
[1751642555372,2.5,147.22,147.21,12.81718101]
[1751642555768,2.5,147.22,147.21,18.39078995]
[1751642556566,2.5,147.22,147.18,82.08028882]
[1751642556773,2.5,147.22,147.21,25.18380672]
[1751642557570,0.2,147.24,147.21,102.05834866]
[1751642557880,0.2,147.24,147.23,18.39078995]
[1751642558776,0.2,147.24,147.21,84.34686038]
[1751642558994,0.2,147.24,147.23,18.39078995]
[1751642559602,0.2,147.24,147.22,26.0]
[1751642559786,0.2,147.24,147.23,18.39078995]
[1751642560600,0.2,147.24,147.21,44.68501677]
[1751642560897,0.2,147.24,147.21,36.3]
[1751642561073,0.2,147.24,147.2,18.39078995]
[1751642561272,0.2,147.24,147.19,58.3]
[1751642561273,0.2,147.24,147.21,18.39078995]
[1751642561492,0.2,147.24,147.22,18.39078995]
[1751642562295,0.2,147.24,147.23,18.39078995]
[1751642562876,0.2,147.24,147.22,18.39078995]
[1751642565903,0.2,147.24,147.19,65.09376747]
[1751642566092,0.2,147.24,147.22,18.39078995]
[1751642566400,0.2,147.24,147.23,18.39078995]
[1751642567301,25.38263017,147.24,147.17,27.5616]
[1751642567476,18.59078995,147.24,147.19,18.39078995]
[1751642567678,18.59078995,147.24,147.2,18.39078995]
[1751642567876,0.2,147.24,147.2,18.39078995]
[1751642568091,0.2,147.24,147.2,25.18422282]
[1751642568285,6.9916333,147.24,147.2,18.39078995]
[1751642568495,18.39078995,147.23,147.19,18.39078995]
[1751642569399,0.2,147.24,147.18,6.79421797]
[1751642569590,0.2,147.24,147.21,18.39078995]
[1751642570101,0.2,147.24,147.17,23.78202078]
[1751642570302,0.2,147.24,147.17,82.08202078]
[1751642570510,0.2,147.24,147.21,18.39078995]
[1751642570686,0.2,147.24,147.17,82.08202078]
[1751642571005,0.2,147.24,147.22,18.39078995]
[1751642571381,0.2,147.24,147.23,18.39078995]
[1751642572008,0.2,147.24,147.22,18.39078995]
[1751642572205,0.2,147.24,147.21,18.39078995]
[1751642572377,6.9916405,147.24,147.21,18.39078995]
[1751642572579,0.2,147.24,147.22,18.39078995]
[1751642573199,0.2,147.24,147.23,18.39078995]
[1751642574691,0.2,147.24,147.23,25.86209335]
[1751642575096,0.2,147.24,147.23,25.18288395]
[1751642576502,0.2,147.24,147.23,6.792094]
[1751642576700,0.2,147.24,147.23,25.18288395]
[1751642577109,0.00012,147.24,147.23,18.39078995]
[1751642577289,0.00012,147.24,147.19,6.7939398]
[1751642577500,0.00012,147.24,147.22,18.39078995]
[1751642577703,0.00012,147.24,147.23,18.39078995]
[1751642577895,0.00012,147.24,147.23,12.79799215]
[1751642578700,0.00012,147.24,147.23,19.59008615]
[1751642579024,0.00012,147.24,147.23,33.0672877]
[1751642579199,0.00012,147.24,147.23,20.26929555]
[1751642579713,0.00012,147.24,147.23,33.0672877]
[1751642580292,0.00012,147.24,147.23,20.26929555]
[1751642580491,0.00012,147.24,147.23,19.59008615]
[1751642581595,0.00012,147.24,147.23,51.03772716]
[1751642581906,0.00012,147.24,147.23,6.792094]
[1751642582111,0.00012,147.24,147.23,19.59008615]
[1751642582411,0.00012,147.24,147.23,32.3880783]
[1751642582723,8.1401,147.37,147.27,26.0]
[1751642582897,6.4963,147.37,147.29,31.44764101]
[1751642583104,4.95156949,147.39,147.29,19.32858157]
[1751642583323,12.79799215,147.38,147.29,0.67893271]
[1751642583522,19.58409421,147.36,147.3,6.78862817]
[1751642583717,19.58409421,147.36,147.31,12.79799215]
[1751642584015,19.58409421,147.36,147.3,6.78862817]
[1751642584016,12.79799215,147.35,147.3,12.79799215]
[1751642584326,12.79799215,147.35,147.31,12.79799215]
[1751642584500,19.5837807,147.37,147.33,12.79799215]
[1751642584700,26.0,147.39,147.34,12.79799215]
[1751642584701,19.58331921,147.38,147.34,12.79799215]
[1751642584901,14.92417595,147.41,147.33,49.01799215]
[1751642585400,6.4963,147.41,147.38,12.79799215]
[1751642585724,17.74453481,147.44,147.39,12.79799215]
[1751642586395,4.94654266,147.44,147.42,12.79799215]
[1751642586615,11.10064266,147.45,147.42,12.79799215]
[1751642586796,4.94654266,147.45,147.42,12.79799215]
[1751642587001,4.94654266,147.45,147.38,23.74793921]
[1751642587221,19.57920735,147.47,147.43,12.79799215]
[1751642587527,6.78058041,147.48,147.42,12.79799215]
[1751642587732,11.72151405,147.48,147.43,12.79799215]
[1751642587896,17.73892579,147.48,147.43,12.79799215]
[1751642588098,4.94093364,147.48,147.43,12.79799215]
[1751642588402,12.79799215,147.47,147.39,0.67847208]
[1751642588627,14.52592059,147.49,147.43,12.79799215]
[1751642588810,27.32391274,147.49,147.38,43.07610618]
[1751642589127,12.93432059,147.49,147.45,12.79799215]
[1751642589330,18.95209215,147.49,147.45,12.79799215]
[1751642589545,25.73222563,147.49,147.45,12.79799215]
[1751642590027,25.73233328,147.49,147.45,12.79799215]
[1751642590241,12.93434113,147.49,147.44,12.79799215]
[1751642590524,12.93434113,147.49,147.41,6.78380028]
[1751642590729,12.93434113,147.49,147.44,12.79799215]
[1751642590909,12.79799215,147.48,147.44,12.79799215]
[1751642591110,19.57860411,147.48,147.44,12.79799215]
[1751642591492,25.7323762,147.49,147.44,19.58037564]
[1751642592217,0.01137126,147.49,147.45,12.79799215]
[1751642592394,0.01137126,147.49,147.44,6.78238349]
[1751642592395,12.79799215,147.49,147.44,6.78238349]
[1751642592596,26.0,147.51,147.45,12.79799215]
[1751642592795,12.79799215,147.49,147.45,12.79799215]
[1751642593129,0.2,147.53,147.48,12.79799215]
[1751642593296,0.2,147.53,147.45,18.64964886]
[1751642593495,0.2,147.53,147.49,12.79799215]
[1751642593693,0.2,147.53,147.51,12.79799215]
[1751642594001,0.2,147.53,147.52,12.79799215]
[1751642595299,0.2,147.53,147.52,19.57673401]
[1751642595494,0.2,147.53,147.52,6.77874186]
[1751642595731,0.2,147.53,147.52,19.57673401]
[1751642595904,0.2,147.53,147.49,6.0557]
[1751642596105,0.2,147.53,147.5,12.79799215]
[1751642596520,0.2,147.53,147.49,6.78005031]
[1751642596830,0.2,147.53,147.5,12.79799215]
[1751642597332,0.2,147.53,147.5,19.57752953]
[1751642597533,0.2,147.53,147.51,12.79799215]
[1751642597854,0.2,147.53,147.5,6.77953738]
[1751642598143,0.2,147.53,147.52,12.79799215]
[1751642598441,0.00162,147.53,147.52,12.79799215]
[1751642599304,0.00162,147.53,147.52,19.57673401]
[1751642600726,0.00162,147.53,147.52,38.22638287]
[1751642600928,0.00162,147.53,147.52,38.90425705]
[1751642601929,0.00162,147.53,147.52,75.04425705]
[1751642602312,0.2,147.57,147.55,18.64964886]
[1751642602525,0.2,147.57,147.56,32.12533144]
[1751642602822,1e-08,147.57,147.56,68.26533144]
[1751642603304,1e-08,147.57,147.56,75.04223575]
[1751642603722,1e-08,147.57,147.56,55.71489646]
[1751642603931,1e-08,147.57,147.56,36.14]
[1751642604131,1e-08,147.57,147.55,12.79799215]
[1751642604303,1e-08,147.57,147.56,12.79799215]
[1751642605406,1e-08,147.57,147.54,85.86197577]
[1751642605407,1e-08,147.57,147.52,19.32752304]
[1751642605612,0.0076788,147.57,147.53,12.79799215]
[1751642605815,0.0076788,147.57,147.5,32.90874886]
[1751642605816,12.79799215,147.54,147.5,14.67959706]
[1751642606118,18.64964886,147.58,147.49,12.79799215]
[1751642606313,12.79799215,147.54,147.49,19.57788137]
[1751642607211,12.79799215,147.54,147.5,12.79799215]
[1751642607739,6.77764256,147.55,147.5,12.79799215]
[1751642607953,12.79799215,147.54,147.5,12.79799215]
[1751642608111,38.79799215,147.58,147.53,12.79799215]
[1751642608304,38.79799215,147.58,147.5,18.64964886]
[1751642608305,38.79799215,147.58,147.54,12.79799215]
[1751642608534,0.2,147.59,147.56,12.79799215]
[1751642608741,0.2,147.59,147.57,12.79799215]
[1751642609036,0.2,147.59,147.58,12.79799215]
[1751642609440,0.2,147.59,147.58,19.57397805]
[1751642610008,0.2,147.59,147.56,42.9164604]
[1751642610213,0.2,147.59,147.56,48.93799215]
[1751642610420,0.2,147.59,147.56,55.71474511]
[1751642610742,0.2,147.59,147.57,12.79799215]
[1751642611042,0.2,147.59,147.58,12.79799215]
[1751642611740,0.2,147.59,147.58,19.57397805]
[1751642612041,0.2,147.59,147.58,6.7759859]
[1751642612226,0.2,147.59,147.58,12.79799215]
[1751642612540,0.2,147.59,147.57,19.57426826]
[1751642612719,0.2,147.59,147.56,48.93799215]
[1751642612919,12.79799215,147.59,147.55,12.79799215]
[1751642613116,0.2,147.61,147.55,6.77717243]
[1751642613429,12.79799215,147.6,147.56,12.79799215]
[1751642613612,12.79799215,147.6,147.56,19.57477227]
[1751642613932,0.2,147.61,147.58,12.79799215]
[1751642614239,0.2,147.61,147.6,12.79799215]
[1751642615852,0.2,147.61,147.6,19.5730599]
[1751642617234,0.2,147.61,147.6,38.90021553]
[1751642617445,0.2,147.61,147.6,38.22270876]
[1751642619362,0.2,147.61,147.6,19.5730599]
[1751642620430,0.2,147.61,147.58,98.3669878]
[1751642620431,0.2,147.61,147.56,9.4785]
[1751642620634,0.2,147.61,147.6,12.79799215]
[1751642621176,0.2,147.62,147.6,25.5959843]
[1751642621353,0.2,147.62,147.61,13.47545302]
[1751642621862,0.2,147.67,147.61,13.47545302]
[1751642622054,0.2,147.67,147.66,12.79799215]
[1751642622240,0.2,147.67,147.66,19.57030692]
[1751642623668,0.2,147.67,147.66,12.79799215]
[1751642624266,0.2,147.67,147.66,19.57030692]
[1751642625035,0.2,147.67,147.66,12.79799215]
[1751642625444,0.2,147.67,147.65,12.79799215]
[1751642625765,0.2,147.67,147.64,12.79799215]
[1751642626678,0.2,147.67,147.65,12.79799215]
[1751642626837,0.2,147.67,147.64,12.79799215]
[1751642627042,23.90150953,147.67,147.59,6.77552679]
[1751642627268,23.90150953,147.67,147.6,12.79799215]
[1751642627437,23.90150953,147.67,147.59,6.77552679]
[1751642627438,12.79799215,147.63,147.59,19.57351894]
[1751642627753,12.79799215,147.65,147.61,12.79799215]
[1751642627932,4.9102669,147.66,147.61,12.79799215]
[1751642628138,12.79799215,147.65,147.61,12.79799215]
[1751642629368,17.70825905,147.65,147.61,19.57243942]
[1751642629541,12.79799215,147.65,147.61,19.57243942]
[1751642629741,17.72142822,147.65,147.61,19.57243942]
[1751642630164,6.77258091,147.66,147.61,19.57243942]
[1751642630464,17.72142961,147.65,147.61,19.57243942]
[1751642630644,4.92343746,147.64,147.61,19.57243942]
[1751642630846,12.79799215,147.65,147.61,19.57243942]
[1751642631049,4.93043863,147.64,147.62,12.79799215]
[1751642631256,12.79799215,147.66,147.62,12.79799215]
[1751642631461,8.49184485,147.67,147.63,12.79799215]
[1751642631462,4.93641324,147.65,147.63,12.79799215]
[1751642631657,4.93641324,147.64,147.63,12.79799215]
[1751642631871,4.9372994,147.64,147.63,12.79799215]
[1751642632072,4.9372994,147.64,147.61,12.79799215]
[1751642632378,4.9372994,147.63,147.6,19.5730599]
[1751642632575,4.9372994,147.62,147.6,12.79799215]
[1751642632743,12.79799215,147.64,147.6,12.79799215]
[1751642632943,12.79799215,147.64,147.56,7.86]
[1751642632944,12.79799215,147.61,147.56,7.86]
[1751642633258,12.79799215,147.61,147.52,1.6071]
[1751642633259,12.79799215,147.59,147.55,19.57495367]
[1751642633564,12.79799215,147.59,147.55,6.77696152]
[1751642633799,12.79799215,147.59,147.55,19.57495367]
[1751642634140,12.79799215,147.6,147.56,12.79799215]
[1751642634337,26.0,147.61,147.57,12.79799215]
[1751642634541,35.92,147.65,147.6,12.79799215]
[1751642634776,12.79799215,147.62,147.58,12.79799215]
[1751642634974,12.79799215,147.62,147.57,12.79799215]
[1751642635280,12.79799215,147.62,147.58,12.79799215]
[1751642635985,12.79799215,147.61,147.57,6.77616158]
[1751642636180,12.79799215,147.6,147.56,19.57470051]
[1751642636665,0.0076788,147.61,147.56,19.57470051]
[1751642637095,0.0076788,147.61,147.57,12.79799215]
[1751642637246,45.57219277,147.62,147.57,12.79799215]
[1751642637442,12.79799215,147.61,147.57,19.57426551]
[1751642637680,12.79799215,147.61,147.57,6.77627336]
[1751642638266,12.79799215,147.59,147.55,12.79799215]
[1751642638474,7.45220514,147.62,147.54,6.77782296]
[1751642638644,12.79799215,147.6,147.56,12.79799215]
[1751642639374,16.93576723,147.62,147.52,7.96]
[1751642639550,12.79799215,147.59,147.55,12.79799215]
[1751642639754,12.79799215,147.58,147.54,12.79799215]
[1751642639952,12.79799215,147.55,147.52,0.1]
[1751642640360,19.32765338,147.58,147.52,0.1]
[1751642640361,12.79799215,147.56,147.52,6.87845072]
[1751642640682,0.0076788,147.55,147.52,0.1]
[1751642641063,12.79799215,147.56,147.52,19.67671721]
[1751642641258,1.5466,147.59,147.55,12.79799215]
[1751642641460,1.5466,147.59,147.55,32.19799215]
[1751642641651,1.5466,147.59,147.55,26.17729877]
[1751642641981,1.5466,147.59,147.56,12.79799215]
[1751642642161,26.0,147.6,147.56,12.79799215]
[1751642642345,12.79799215,147.62,147.57,12.79799215]
[1751642642550,27.22414444,147.63,147.59,12.79799215]
[1751642642865,26.0,147.62,147.59,12.79799215]
[1751642643174,14.31149215,147.63,147.59,12.79799215]
[1751642643375,14.31149215,147.63,147.55,43.12070778]
[1751642643376,12.79799215,147.62,147.57,12.79799215]
[1751642643561,12.79799215,147.59,147.55,38.97529092]
[1751642643760,12.79799215,147.57,147.52,26.27854037]
[1751642643962,12.79799215,147.56,147.52,0.1]
[1751642644159,12.79799215,147.55,147.52,6.87873972]
[1751642644360,12.79799215,147.56,147.52,19.67673187]
[1751642645078,26.0,147.6,147.55,12.79799215]
[1751642645258,12.79799215,147.59,147.55,12.79799215]
[1751642645463,12.79799215,147.58,147.54,12.79799215]
[1751642645772,12.79799215,147.57,147.52,6.87873972]
[1751642645984,12.79799215,147.57,147.53,12.79799215]
[1751642646478,12.79799215,147.59,147.54,12.79799215]
[1751642646848,12.79799215,147.56,147.52,6.87873972]
[1751642647049,12.79799215,147.56,147.52,19.67673187]
[1751642647675,12.79799215,147.54,147.52,0.1]
[1751642647887,12.79799215,147.55,147.52,0.1]
[1751642648171,12.79799215,147.55,147.52,6.87872469]
[1751642648575,6.77664973,147.57,147.52,6.87872469]
[1751642648800,12.79799215,147.56,147.52,6.87872469]
[1751642648982,6.7760878,147.58,147.52,19.67671684]
[1751642649159,12.79799215,147.56,147.52,19.67671684]
[1751642650168,12.79799215,147.59,147.55,12.79799215]
[1751642650478,12.79799215,147.58,147.54,12.79799215]
[1751642651288,38.79799215,147.6,147.55,12.79799215]
[1751642651463,26.0,147.6,147.56,12.79799215]
[1751642651664,12.79799215,147.58,147.54,12.79799215]
[1751642651872,12.79799215,147.55,147.51,12.79799215]
[1751642652068,12.79799215,147.55,147.52,6.77874186]
[1751642652264,12.79799215,147.55,147.5,6.77966101]
[1751642652474,12.79799215,147.53,147.48,12.79799215]
[1751642652679,12.79799215,147.52,147.48,12.79799215]
[1751642653475,18.64964886,147.54,147.48,19.57824545]
[1751642653688,18.64964886,147.54,147.46,23.09215676]
[1751642653689,12.79799215,147.49,147.46,0.1]
[1751642653898,12.79799215,147.47,147.46,0.1]
[1751642654998,12.79799215,147.48,147.46,0.1]
[1751642655173,26.0,147.49,147.46,0.1]
[1751642655365,38.79799215,147.49,147.46,6.88138948]
[1751642656070,12.79799215,147.49,147.46,6.88138948]
[1751642656697,26.0,147.51,147.46,19.67938163]
[1751642656868,12.79799215,147.5,147.46,19.67938163]
[1751642657291,12.79799215,147.5,147.46,6.88138948]
[1751642658104,26.0,147.51,147.48,12.79799215]
[1751642658505,12.79799215,147.51,147.47,12.79799215]
[1751642659003,12.79799215,147.52,147.48,12.79799215]
[1751642659305,12.79799215,147.52,147.46,6.88138948]
[1751642659471,12.79799215,147.5,147.46,6.88138948]
[1751642659670,12.79799215,147.49,147.46,6.88138948]
[1751642659890,12.79799215,147.49,147.46,0.1]
[1751642660122,12.79799215,147.47,147.46,0.1]
[1751642660994,0.0076788,147.47,147.46,0.1]
[1751642662111,12.79799215,147.47,147.46,0.1]
[1751642663001,38.79799215,147.47,147.46,0.1]
[1751642664117,64.22868122,147.47,147.46,0.1]
[1751642664717,45.57903236,147.47,147.46,0.1]
[1751642665015,64.22868122,147.47,147.46,0.1]
[1751642665522,44.64964886,147.44,147.43,0.1]
[1751642665816,57.44764101,147.44,147.43,0.1]
[1751642666116,38.79799215,147.44,147.43,0.1]
[1751642666420,45.58041211,147.44,147.43,0.1]
[1751642666616,64.23006097,147.44,147.43,0.1]
[1751642667118,26.0,147.46,147.43,0.1]
[1751642667420,12.79799215,147.45,147.43,0.1]
[1751642667581,12.79799215,147.45,147.43,6.88284503]
[1751642667582,26.0,147.45,147.43,6.88284503]
[1751642667922,38.79799215,147.46,147.43,0.1]
[1751642669806,12.79799215,147.45,147.43,0.1]
[1751642670313,32.78151565,147.46,147.43,0.1]
[1751642670314,0.0076788,147.44,147.43,0.1]
[1751642670508,26.0,147.46,147.43,0.1]
[1751642670692,26.0,147.46,147.43,6.88277273]
[1751642671003,38.79799215,147.46,147.43,0.1]
[1751642671351,26.0,147.46,147.43,0.1]
[1751642671518,38.79799215,147.46,147.43,0.1]
[1751642672422,38.79799215,147.46,147.43,6.88286216]
[1751642673292,26.0,147.47,147.43,39.08085431]
[1751642673810,12.79799215,147.48,147.43,26.28286216]
[1751642674006,12.79799215,147.48,147.44,12.79799215]
[1751642674208,12.79799215,147.48,147.44,19.58013118]
[1751642674407,56.9459467,147.53,147.45,12.79799215]
[1751642674408,24.58543781,147.53,147.45,12.79799215]
[1751642674726,12.79799215,147.5,147.44,26.18213903]
[1751642674914,12.79799215,147.49,147.45,12.79799215]
[1751642675801,26.0,147.51,147.45,19.57970261]
[1751642676115,12.79799215,147.5,147.46,12.79799215]
[1751642676419,38.79799215,147.51,147.47,12.79799215]
[1751642678420,19.57690058,147.52,147.47,19.57874327]
[1751642679119,26.0,147.53,147.48,12.79799215]
[1751642679310,26.36294886,147.56,147.48,12.79799215]
[1751642679311,12.79799215,147.55,147.5,12.79799215]
[1751642679507,23.59904461,147.58,147.52,12.79799215]
[1751642679711,9.3976,147.6,147.53,12.79799215]
[1751642679915,12.79799215,147.59,147.55,12.79799215]
[1751642681526,7.74,147.6,147.55,12.79799215]
[1751642681695,6.77402411,147.63,147.56,12.79799215]
[1751642681898,12.79799215,147.61,147.56,12.79799215]
[1751642682295,12.79799215,147.61,147.56,19.57489646]
[1751642682823,12.79799215,147.62,147.56,19.57489646]
[1751642683396,12.79799215,147.63,147.56,19.57489646]
[1751642683608,32.9728576,147.65,147.56,19.57489646]
[1751642683796,12.79799215,147.64,147.56,45.57489646]